fUSD/lending_fUSD_20240531
["ID","MTS","AMOUNT","RATE_DAILY","PERIOD"]
[328303488,1717127464378,-500.0,0.00032889,11]
[328303489,1717127464387,-500.0,0.00032889,11]
[328303490,1717127464397,-322.41245485,0.00032889,11]
[328303491,1717127464407,-500.0,0.00032889,11]
[328303492,1717127464416,-237.13,0.00032889,11]
[328303493,1717127464427,-3584.58433731,0.00032892,4]
[328303494,1717127464437,-5013.57201565,0.000329,2]
[328303495,1717127464448,-3584.58433731,0.0003293,4]
[328303496,1717127464459,-157.48160741,0.00032938,7]
[328303497,1717127464469,-3584.58433731,0.00032969,4]
[328303498,1717127464478,-1267.23923,0.0003297,2]
[328303499,1717127464489,-500.0,0.00032987,3]
[328303500,1717127464503,-500.0,0.00032996,3]
[328303501,1717127464515,-412.93251004,0.00033,4]
[328303502,1717127464527,-1250.0,0.00033,2]
[328303503,1717127464537,-150.76178413,0.00033,2]
[328303504,1717127464547,-500.0,0.00033005,3]
[328303505,1717127464559,-3584.58433731,0.00033007,5]
[328303506,1717127464569,-500.0,0.00033014,3]
[328303507,1717127464579,-500.0,0.00033023,3]
[328303508,1717127464589,-500.0,0.00033031,3]
[328303509,1717127464599,-500.0,0.00033033,10]
[328303510,1717127464609,-500.0,0.0003304,3]
[328303511,1717127464624,-3584.58433731,0.00033046,5]
[328303512,1717127464634,-500.0,0.00033049,3]
[328303513,1717127464644,-500.0,0.00033058,3]
[328303514,1717127464655,-157.48160741,0.00033059,7]
[328303515,1717127464664,-500.0,0.00033067,3]
[328303516,1717127464674,-500.0,0.00033075,3]
[328303517,1717127464683,-500.0,0.00033084,3]
[328303518,1717127464694,-16000.0,0.00033084,3]
[328303519,1717127464704,-3584.58433731,0.00033084,5]
[328303520,1717127464714,-500.0,0.00033093,3]
[328303521,1717127464723,-16000.0,0.00033093,3]
[328303522,1717127464732,-3584.58433731,0.00033123,5]
[328303523,1717127464742,-3584.58433731,0.00033161,5]
[328303524,1717127464752,-500.0,0.00033199,11]
[328303525,1717127464762,-500.0,0.00033199,11]
[328303526,1717127464771,-500.0,0.00033199,11]
[328303527,1717127464782,-500.0,0.00033199,11]
[328303528,1717127464792,-500.0,0.00033199,11]
[328303529,1717127464801,-500.0,0.00033199,11]
[328303530,1717127464811,-3584.58433731,0.000332,5]
[328303531,1717127464822,-1012.6,0.000332,2]
[328303532,1717127464833,-24501.66332193,0.000332,2]
[328303533,1717127464843,-150.0,0.000332,7]
[328303534,1717127464855,-444.00639952,0.000332,2]
[328303535,1717127464866,-433.71,0.00033297,11]
[328303536,1717127464875,-545.15,0.00033297,11]
[328303537,1717127464885,-525.41,0.00033297,11]
[328303538,1717127464894,-500.0,0.00033297,11]
[328303539,1717127464905,-500.0,0.00033297,11]
[328303540,1717127464915,-500.0,0.00033297,11]
[328303541,1717127464924,-647.58,0.00033297,11]
[328303542,1717127464934,-409.9,0.00033297,11]
[328303543,1717127464943,-500.0,0.00033297,11]
[328303544,1717127464953,-365.4,0.00033297,11]
[328303545,1717127464963,-184.86,0.00033297,11]
[328303546,1717127464973,-500.0,0.00033297,11]
[328303547,1717127464983,-500.0,0.00033297,11]
[328303548,1717127464992,-1237.33,0.00033297,11]
[328303549,1717127465001,-163.98,0.00033297,11]
[328303550,1717127465011,-500.0,0.00033297,11]
[328303551,1717127465020,-735.18097479,0.00033298,4]
[328303552,1717127465030,-284.0,0.00033298,11]
[328303553,1717127465039,-220.43,0.00033298,11]
[328303554,1717127465048,-500.0,0.00033298,11]
[328303555,1717127465058,-500.0,0.00033298,11]
[328303556,1717127465068,-500.0,0.00033298,11]
[328303557,1717127465077,-500.0,0.00033298,11]
[328303558,1717127465087,-251.06,0.00033298,11]
[328303559,1717127465096,-233.99,0.00033298,11]
[328303560,1717127465105,-223.31,0.00033298,11]
[328303561,1717127465117,-500.0,0.00033298,11]
[328303562,1717127465128,-552.32,0.00033298,11]
[328303563,1717127465137,-514.85,0.00033298,11]
[328303564,1717127465147,-161.22,0.00033298,11]
[328303565,1717127465156,-500.0,0.00033298,11]
[328303566,1717127465166,-323.12,0.00033298,11]
[328303567,1717127465175,-500.0,0.00033298,11]
[328303568,1717127465185,-500.0,0.00033298,11]
[328303569,1717127465194,-500.0,0.00033298,11]
[328303570,1717127465203,-500.0,0.00033298,11]
[328303571,1717127465213,-500.0,0.00033298,11]
[328303572,1717127465223,-500.0,0.00033298,11]
[328303573,1717127465233,-577.12,0.00033298,11]
[328303574,1717127465242,-500.0,0.00033298,11]
[328303575,1717127465252,-500.0,0.00033298,11]
[328303576,1717127465261,-525.41,0.00033298,11]
[328303577,1717127465271,-500.0,0.00033298,11]
[328303578,1717127465280,-500.0,0.00033298,11]
[328303579,1717127465291,-500.0,0.00033298,11]
[328303580,1717127465301,-500.0,0.00033298,11]
[328303581,1717127465311,-500.0,0.00033298,11]
[328303582,1717127465320,-500.0,0.00033298,11]
[328303583,1717127465330,-500.0,0.00033298,11]
[328303584,1717127465339,-500.0,0.00033298,11]
[328303585,1717127465349,-500.0,0.00033298,11]
[328303586,1717127465359,-500.0,0.00033298,11]
[328303587,1717127465372,-550.69,0.00033298,11]
[328303588,1717127465382,-500.0,0.00033298,11]
[328303589,1717127465391,-517.9,0.00033298,11]
[328303590,1717127465401,-500.0,0.00033298,11]
[328303591,1717127465411,-500.0,0.00033298,11]
[328303592,1717127465420,-500.0,0.00033298,11]
[328303593,1717127465430,-649.94,0.00033298,11]
[328303594,1717127465440,-500.0,0.00033298,11]
[328303595,1717127465450,-500.0,0.00033298,11]
[328303596,1717127465460,-500.0,0.00033298,11]
[328303597,1717127465470,-414.61,0.00033298,11]
[328303598,1717127465479,-500.0,0.00033298,11]
[328303599,1717127465490,-420.52846381,0.00033298,11]
[328303600,1717127465500,-500.0,0.00033298,11]
[328303601,1717127465509,-594.52,0.00033298,11]
[328303602,1717127465519,-500.0,0.00033298,11]
[328303603,1717127465529,-500.0,0.00033298,11]
[328303604,1717127465539,-500.0,0.00033298,11]
[328303605,1717127465549,-500.0,0.00033298,11]
[328303606,1717127465558,-500.0,0.00033298,11]
[328303607,1717127465569,-205.58,0.00033298,11]
[328303608,1717127465579,-500.0,0.00033298,11]
[328303609,1717127465759,-500.0,0.00033298,11]
[328303610,1717127465769,-500.0,0.00033298,11]
[328303611,1717127465778,-500.0,0.00033298,11]
[328303612,1717127465788,-500.0,0.00033298,11]
[328303613,1717127465798,-566.48,0.00033298,11]
[328303614,1717127465807,-500.0,0.00033298,11]
[328303615,1717127465816,-500.0,0.00033298,11]
[328303616,1717127465826,-500.0,0.00033298,11]
[328303617,1717127465835,-500.0,0.00033298,11]
[328303618,1717127465844,-500.0,0.00033298,11]
[328303619,1717127465853,-500.0,0.00033298,11]
[328303620,1717127465863,-500.0,0.00033298,11]
[328303621,1717127465874,-500.0,0.00033298,11]
[328303622,1717127465883,-500.0,0.00033298,11]
[328303623,1717127465892,-500.0,0.00033298,11]
[328303624,1717127465901,-500.0,0.00033298,11]
[328303625,1717127465910,-499.88,0.00033298,11]
[328303626,1717127465920,-500.0,0.00033298,11]
[328303627,1717127465929,-500.0,0.00033298,11]
[328303628,1717127465939,-500.0,0.00033298,11]
[328303629,1717127465948,-500.0,0.00033298,11]
[328303630,1717127465958,-500.0,0.00033298,11]
[328303631,1717127465968,-677.55,0.00033298,11]
[328303632,1717127465977,-500.0,0.00033298,11]
[328303633,1717127465987,-500.0,0.00033298,11]
[328303634,1717127465997,-500.0,0.00033298,11]
[328303635,1717127466006,-428.9,0.00033298,11]
[328303636,1717127466015,-630.98,0.00033298,11]
[328303637,1717127466024,-1257.81,0.00033298,11]
[328303638,1717127466034,-1237.33,0.00033298,11]
[328303639,1717127466043,-500.0,0.00033298,11]
[328303640,1717127466053,-501.17,0.00033298,11]
[328303641,1717127466062,-500.0,0.00033298,11]
[328303642,1717127466071,-500.0,0.00033298,11]
[328303643,1717127466081,-2000.0,0.00033299,2]
[328303644,1717127466089,-2016.0269,0.00033299,2]
[328303645,1717127466099,-500.0,0.00033299,11]
[328303646,1717127466108,-160.0,0.00033299,11]
[328303647,1717127466119,-500.0,0.00033299,11]
[328303648,1717127466129,-383.26,0.00033299,11]
[328303649,1717127466137,-365.58,0.00033299,11]
[328303650,1717127466146,-500.0,0.00033299,11]
[328303651,1717127466155,-573.88,0.00033299,11]
[328303652,1717127466166,-500.0,0.00033299,11]
[328303653,1717127466175,-500.0,0.00033299,11]
[328303654,1717127466184,-312.05,0.00033299,11]
[328303655,1717127466194,-500.0,0.00033299,11]
[328303656,1717127466203,-191.04,0.00033299,11]
[328303657,1717127466211,-2025.5958,0.00033299,2]
[328303658,1717127466221,-500.0,0.00033299,11]
[328303659,1717127466230,-500.0,0.00033299,11]
[328303660,1717127466239,-228.92,0.00033299,11]
[328303661,1717127466248,-500.0,0.00033299,11]
[328303662,1717127466257,-500.0,0.00033299,11]
[328303663,1717127466266,-175.13,0.00033299,11]
[328303664,1717127466275,-500.0,0.00033299,11]
[328303665,1717127466284,-500.0,0.00033299,11]
[328303666,1717127466295,-500.0,0.00033299,11]
[328303667,1717127466305,-500.0,0.00033299,11]
[328303668,1717127466314,-500.0,0.00033299,11]
[328303669,1717127466324,-228.8,0.00033299,11]
[328303670,1717127466334,-500.0,0.00033299,11]
[328303671,1717127466343,-500.0,0.00033299,11]
[328303672,1717127466353,-500.0,0.00033299,11]
[328303673,1717127466362,-500.0,0.00033299,11]
[328303674,1717127466374,-201.0,0.00033299,11]
[328303675,1717127466383,-363.69,0.00033299,11]
[328303676,1717127466392,-500.0,0.00033299,11]
[328303677,1717127466401,-500.0,0.00033299,11]
[328303678,1717127466410,-500.0,0.00033299,11]
[328303679,1717127466420,-152.58,0.00033299,11]
[328303680,1717127466429,-500.0,0.00033299,11]
[328303681,1717127466438,-213.22,0.00033299,11]
[328303682,1717127466447,-500.0,0.00033299,11]
[328303683,1717127466456,-500.0,0.00033299,11]
[328303684,1717127466466,-500.0,0.00033299,11]
[328303685,1717127466475,-500.0,0.00033299,11]
[328303686,1717127466484,-500.0,0.00033299,11]
[328303687,1717127466493,-500.0,0.00033299,11]
[328303688,1717127466503,-500.0,0.00033299,11]
[328303689,1717127466512,-500.0,0.00033299,11]
[328303690,1717127466521,-493.79824136,0.00033299,11]
[328303691,1717127466530,-525.41,0.00033299,11]
[328303692,1717127466539,-525.41,0.00033299,11]
[328303693,1717127466549,-525.41,0.00033299,11]
[328303694,1717127466558,-525.41,0.00033299,11]
[328303695,1717127466568,-525.41,0.00033299,11]
[328303696,1717127466577,-525.41,0.00033299,11]
[328303697,1717127466587,-525.41,0.00033299,11]
[328303698,1717127466596,-525.41,0.00033299,11]
[328303699,1717127466606,-525.41,0.00033299,11]
[328303700,1717127466621,-500.0,0.00033299,11]
[328303701,1717127466631,-525.41,0.00033299,11]
[328303702,1717127466641,-500.0,0.00033299,11]
[328303703,1717127466650,-525.41,0.00033299,11]
[328303704,1717127466661,-500.0,0.00033299,11]
[328303705,1717127466670,-525.41,0.00033299,11]
[328303706,1717127466680,-500.0,0.00033299,11]
[328303707,1717127466690,-525.41,0.00033299,11]
[328303708,1717127466700,-500.0,0.00033299,11]
[328303709,1717127466709,-525.41,0.00033299,11]
[328303710,1717127466719,-500.0,0.00033299,11]
[328303711,1717127466728,-525.41,0.00033299,11]
[328303712,1717127466738,-500.0,0.00033299,11]
[328303713,1717127466747,-525.59,0.00033299,11]
[328303714,1717127466756,-500.0,0.00033299,11]
[328303715,1717127466766,-579.15,0.00033299,11]
[328303716,1717127466775,-500.0,0.00033299,11]
[328303717,1717127466784,-500.0,0.00033299,11]
[328303718,1717127466794,-500.0,0.00033299,11]
[328303719,1717127466804,-444.09,0.00033299,11]
[328303720,1717127466813,-500.0,0.00033299,11]
[328303721,1717127466822,-500.0,0.00033299,11]
[328303722,1717127466832,-407.87,0.00033299,11]
[328303723,1717127466841,-500.0,0.00033299,11]
[328303724,1717127466850,-500.0,0.00033299,11]
[328303725,1717127466859,-500.0,0.00033299,11]
[328303726,1717127466869,-500.0,0.00033299,11]
[328303727,1717127466879,-500.0,0.00033299,11]
[328303728,1717127466888,-500.0,0.00033299,11]
[328303729,1717127466897,-500.0,0.00033299,11]
[328303730,1717127466906,-500.0,0.00033299,11]
[328303731,1717127466916,-500.0,0.00033299,11]
[328303732,1717127466925,-500.0,0.00033299,11]
[328303733,1717127466934,-500.0,0.00033299,11]
[328303734,1717127466943,-500.0,0.00033299,11]
[328303735,1717127466952,-500.0,0.00033299,11]
[328303736,1717127466961,-500.0,0.00033299,11]
[328303737,1717127466970,-500.0,0.00033299,11]
[328303738,1717127466980,-500.0,0.00033299,11]
[328303739,1717127466988,-500.0,0.00033299,11]
[328303740,1717127466997,-500.0,0.00033299,11]
[328303741,1717127467006,-500.0,0.00033299,11]
[328303742,1717127467015,-618.6,0.00033299,11]
[328303743,1717127467024,-500.0,0.00033299,11]
[328303744,1717127467033,-500.0,0.00033299,11]
[328303745,1717127467042,-500.0,0.00033299,11]
[328303746,1717127467051,-500.0,0.00033299,11]
[328303747,1717127467060,-500.0,0.00033299,11]
[328303748,1717127467069,-500.0,0.00033299,11]
[328303749,1717127467078,-500.0,0.00033299,11]
[328303750,1717127467086,-500.0,0.00033299,11]
[328303751,1717127467095,-500.0,0.00033299,11]
[328303752,1717127467104,-500.0,0.00033299,11]
[328303753,1717127467113,-500.0,0.00033299,11]
[328303754,1717127467123,-427.81,0.00033299,11]
[328303755,1717127467132,-500.0,0.00033299,11]
[328303756,1717127467141,-500.0,0.00033299,11]
[328303757,1717127467150,-500.0,0.00033299,11]
[328303758,1717127467159,-500.0,0.00033299,11]
[328303759,1717127467168,-504.0,0.00033299,11]
[328303760,1717127467177,-330.72,0.00033299,11]
[328303761,1717127467187,-500.0,0.00033299,11]
[328303762,1717127467196,-500.0,0.00033299,11]
[328303763,1717127467205,-500.0,0.00033299,11]
[328303764,1717127467213,-500.0,0.00033299,11]
[328303765,1717127467222,-493.02,0.00033299,11]
[328303766,1717127467232,-171.57,0.00033299,11]
[328303767,1717127467241,-367.95,0.00033299,11]
[328303768,1717127467250,-500.0,0.00033299,11]
[328303769,1717127467259,-500.0,0.00033299,11]
[328303770,1717127467268,-500.0,0.00033299,11]
[328303771,1717127467277,-500.0,0.00033299,11]
[328303772,1717127467287,-276.28,0.00033299,11]
[328303773,1717127467297,-500.0,0.00033299,11]
[328303774,1717127467306,-333.61,0.00033299,11]
[328303775,1717127467316,-500.0,0.00033299,11]
[328303776,1717127467325,-500.0,0.00033299,11]
[328303777,1717127467334,-500.0,0.00033299,11]
[328303778,1717127467343,-500.0,0.00033299,11]
[328303779,1717127467352,-500.0,0.00033299,11]
[328303780,1717127467361,-500.0,0.00033299,11]
[328303781,1717127467371,-500.0,0.00033299,11]
[328303782,1717127467380,-500.0,0.00033299,11]
[328303783,1717127467389,-500.0,0.00033299,11]
[328303784,1717127467398,-500.0,0.00033299,11]
[328303785,1717127467407,-500.0,0.00033299,11]
[328303786,1717127467416,-500.0,0.00033299,11]
[328303787,1717127467424,-344.73,0.00033299,11]
[328303788,1717127467433,-500.0,0.00033299,11]
[328303789,1717127467442,-500.0,0.00033299,11]
[328303790,1717127467451,-500.0,0.00033299,11]
[328303791,1717127467460,-500.0,0.00033299,11]
[328303792,1717127467469,-178.8,0.00033299,11]
[328303793,1717127467478,-500.0,0.00033299,11]
[328303794,1717127467487,-500.0,0.00033299,11]
[328303795,1717127467496,-269.42,0.00033299,11]
[328303796,1717127467505,-649.94,0.00033299,11]
[328303797,1717127467515,-649.94,0.00033299,11]
[328303798,1717127467524,-649.94,0.00033299,11]
[328303799,1717127467536,-649.94,0.00033299,11]
[328303800,1717127467545,-649.94,0.00033299,11]
[328303801,1717127467554,-649.94,0.00033299,11]
[328303802,1717127467564,-649.94,0.00033299,11]
[328303803,1717127467573,-649.94,0.00033299,11]
[328303804,1717127467583,-649.94,0.00033299,11]
[328303805,1717127467591,-649.94,0.00033299,11]
[328303806,1717127467600,-500.0,0.00033299,11]
[328303807,1717127467609,-649.94,0.00033299,11]
[328303808,1717127467624,-500.0,0.00033299,11]
[328303809,1717127467633,-500.0,0.00033299,11]
[328303810,1717127467642,-649.94,0.00033299,11]
[328303811,1717127467651,-500.0,0.00033299,11]
[328303812,1717127467660,-500.0,0.00033299,11]
[328303813,1717127467669,-348.07,0.00033299,11]
[328303814,1717127467677,-649.94,0.00033299,11]
[328303815,1717127467686,-500.0,0.00033299,11]
[328303816,1717127467697,-500.0,0.00033299,11]
[328303817,1717127467707,-649.94,0.00033299,11]
[328303818,1717127467716,-500.0,0.00033299,11]
[328303819,1717127467725,-500.0,0.00033299,11]
[328303820,1717127467734,-649.94,0.00033299,11]
[328303821,1717127467744,-500.0,0.00033299,11]
[328303822,1717127467753,-500.0,0.00033299,11]
[328303823,1717127467762,-649.94,0.00033299,11]
[328303824,1717127467771,-500.0,0.00033299,11]
[328303825,1717127467781,-639.37,0.00033299,11]
[328303826,1717127467791,-649.94,0.00033299,11]
[328303827,1717127467801,-500.0,0.00033299,11]
[328303828,1717127467811,-649.94,0.00033299,11]
[328303829,1717127467820,-198.73,0.00033299,11]
[328303830,1717127467829,-650.06,0.00033299,11]
[328303831,1717127467838,-500.0,0.00033299,11]
[328303832,1717127467848,-500.0,0.00033299,11]
[328303833,1717127467857,-500.0,0.00033299,11]
[328303834,1717127467867,-500.0,0.00033299,11]
[328303835,1717127467876,-500.0,0.00033299,11]
[328303836,1717127467885,-424.21,0.00033299,11]
[328303837,1717127467894,-500.0,0.00033299,11]
[328303838,1717127467903,-500.0,0.00033299,11]
[328303839,1717127467912,-370.25,0.00033299,11]
[328303840,1717127467922,-500.0,0.00033299,11]
[328303841,1717127467931,-500.0,0.00033299,11]
[328303842,1717127467940,-500.0,0.00033299,11]
[328303843,1717127467949,-321.47864613,0.00033299,11]
[328303844,1717127467958,-500.0,0.00033299,11]
[328303845,1717127467967,-500.0,0.00033299,11]
[328303846,1717127468020,-500.0,0.00033299,11]
[328303847,1717127468029,-500.0,0.00033299,11]
[328303848,1717127468038,-500.0,0.00033299,11]
[328303849,1717127468047,-500.0,0.00033299,11]
[328303850,1717127468057,-500.0,0.00033299,11]
[328303851,1717127468066,-500.0,0.00033299,11]
[328303852,1717127468075,-500.0,0.00033299,11]
[328303853,1717127468084,-500.0,0.00033299,11]
[328303854,1717127468094,-391.15265935,0.00033299,11]
[328303855,1717127468103,-500.0,0.00033299,11]
[328303856,1717127468112,-297.61,0.00033299,11]
[328303857,1717127468122,-500.0,0.00033299,11]
[328303858,1717127468131,-500.0,0.00033299,11]
[328303859,1717127468141,-500.0,0.00033299,11]
[328303860,1717127468150,-500.0,0.00033299,11]
[328303861,1717127468160,-500.0,0.00033299,11]
[328303862,1717127468169,-588.49,0.00033299,11]
[328303863,1717127468178,-605.64,0.00033299,11]
[328303864,1717127468187,-500.0,0.00033299,11]
[328303865,1717127468196,-500.0,0.00033299,11]
[328303866,1717127468206,-505.3,0.00033299,11]
[328303867,1717127468215,-462.82,0.00033299,11]
[328303868,1717127468224,-500.0,0.00033299,11]
[328303869,1717127468233,-577.84,0.00033299,11]
[328303870,1717127468242,-500.0,0.00033299,11]
[328303871,1717127468251,-500.0,0.00033299,11]
[328303872,1717127468260,-500.0,0.00033299,11]
[328303873,1717127468269,-500.0,0.00033299,11]
[328303874,1717127468278,-500.0,0.00033299,11]
[328303875,1717127468287,-500.0,0.00033299,11]
[328303876,1717127468296,-500.0,0.00033299,11]
[328303877,1717127468306,-500.0,0.00033299,11]
[328303878,1717127468315,-500.0,0.00033299,11]
[328303879,1717127468323,-290.19,0.00033299,11]
[328303880,1717127468333,-179.41,0.00033299,11]
[328303881,1717127468347,-500.0,0.00033299,11]
[328303882,1717127468357,-500.0,0.00033299,11]
[328303883,1717127468368,-500.0,0.00033299,11]
[328303884,1717127468377,-500.0,0.00033299,11]
[328303885,1717127468386,-500.0,0.00033299,11]
[328303886,1717127468395,-352.56,0.00033299,11]
[328303887,1717127468405,-500.0,0.00033299,11]
[328303888,1717127468414,-500.0,0.00033299,11]
[328303889,1717127468423,-500.0,0.00033299,11]
[328303890,1717127468433,-500.0,0.00033299,11]
[328303891,1717127468442,-500.0,0.00033299,11]
[328303892,1717127468451,-500.0,0.00033299,11]
[328303893,1717127468460,-500.0,0.00033299,11]
[328303894,1717127468469,-500.0,0.00033299,11]
[328303895,1717127468478,-252.55,0.00033299,11]
[328303896,1717127468488,-466.76,0.00033299,11]
[328303897,1717127468497,-500.0,0.00033299,11]
[328303898,1717127468506,-329.62,0.00033299,11]
[328303899,1717127468515,-500.0,0.00033299,11]
[328303900,1717127468524,-500.0,0.00033299,11]
[328303901,1717127468533,-500.0,0.00033299,11]
[328303902,1717127468542,-225.38,0.00033299,11]
[328303903,1717127468551,-230.28,0.00033299,11]
[328303904,1717127468560,-500.0,0.00033299,11]
[328303905,1717127468569,-396.47,0.00033299,11]
[328303906,1717127468578,-500.0,0.00033299,11]
[328303907,1717127468587,-500.0,0.00033299,11]
[328303908,1717127468595,-500.0,0.00033299,11]
[328303909,1717127468605,-438.54,0.00033299,11]
[328303910,1717127468618,-500.0,0.00033299,11]
[328303911,1717127468627,-500.0,0.00033299,11]
[328303912,1717127468636,-560.02,0.00033299,11]
[328303913,1717127468645,-500.0,0.00033299,11]
[328303914,1717127468655,-536.61,0.00033299,11]
[328303915,1717127468665,-500.0,0.00033299,11]
[328303916,1717127468674,-500.0,0.00033299,11]
[328303917,1717127468683,-500.0,0.00033299,11]
[328303918,1717127468695,-500.0,0.00033299,11]
[328303919,1717127468704,-500.0,0.00033299,11]
[328303920,1717127468714,-500.0,0.00033299,11]
[328303921,1717127468723,-500.0,0.00033299,11]
[328303922,1717127468733,-500.0,0.00033299,11]
[328303923,1717127468742,-500.0,0.00033299,11]
[328303924,1717127468751,-500.0,0.00033299,11]
[328303925,1717127468761,-500.0,0.00033299,11]
[328303926,1717127468770,-423.78,0.00033299,11]
[328303927,1717127468779,-500.0,0.00033299,11]
[328303928,1717127468788,-500.0,0.00033299,11]
[328303929,1717127468797,-500.0,0.00033299,11]
[328303930,1717127468806,-500.0,0.00033299,11]
[328303931,1717127468815,-539.72,0.00033299,11]
[328303932,1717127468824,-500.0,0.00033299,11]
[328303933,1717127468833,-500.0,0.00033299,11]
[328303934,1717127468842,-558.27,0.00033299,11]
[328303935,1717127468852,-230.0,0.00033299,11]
[328303936,1717127468860,-500.0,0.00033299,11]
[328303937,1717127468871,-531.34,0.00033299,11]
[328303938,1717127468880,-677.55,0.00033299,11]
[328303939,1717127468890,-500.0,0.00033299,11]
[328303940,1717127468899,-677.55,0.00033299,11]
[328303941,1717127468908,-500.0,0.00033299,11]
[328303942,1717127468917,-677.55,0.00033299,11]
[328303943,1717127468926,-605.31,0.00033299,11]
[328303944,1717127468934,-500.0,0.00033299,11]
[328303945,1717127468943,-677.55,0.00033299,11]
[328303946,1717127468952,-331.72,0.00033299,11]
[328303947,1717127468961,-677.55,0.00033299,11]
[328303948,1717127468970,-677.55,0.00033299,11]
[328303949,1717127468979,-677.55,0.00033299,11]
[328303950,1717127468987,-500.0,0.00033299,11]
[328303951,1717127468997,-677.55,0.00033299,11]
[328303952,1717127469006,-500.0,0.00033299,11]
[328303953,1717127469015,-677.55,0.00033299,11]
[328303954,1717127469024,-500.0,0.00033299,11]
[328303955,1717127469033,-677.55,0.00033299,11]
[328303956,1717127469043,-500.0,0.00033299,11]
[328303957,1717127469053,-677.55,0.00033299,11]
[328303958,1717127469062,-500.0,0.00033299,11]
[328303959,1717127469071,-677.55,0.00033299,11]
[328303960,1717127469080,-500.0,0.00033299,11]
[328303961,1717127469090,-677.55,0.00033299,11]
[328303962,1717127469100,-500.0,0.00033299,11]
[328303963,1717127469109,-677.55,0.00033299,11]
[328303964,1717127469120,-81.72610338,0.00033299,11]
[328303965,1717127469478,-595.82389662,0.00033299,11]
[328303966,1717127469487,-500.0,0.00033299,11]
[328303967,1717127469497,-659.87190338,0.00033299,11]
[328303968,1717127469566,-312.16935958,0.00032876,11]
[328303969,1717127469649,-71.15064042,0.00032876,11]
[328303970,1717127469660,-500.0,0.00032876,11]
[328303971,1717127469670,-88.36642066,0.00032876,11]
[328303972,1717127469719,-411.63357934,0.00032876,11]
[328303973,1717127469729,-88.36642066,0.00032876,2]
[328303974,1717127469741,-411.63357934,0.00032876,2]
[328303975,1717127469751,-500.0,0.00032876,11]
[328303976,1717127469760,-421.84878425,0.00032876,2]
[328303977,1717127469771,-78.15121575,0.00032876,2]
[328303978,1717127469781,-500.0,0.00032876,2]
[328303979,1717127469790,-284.54746564,0.00032876,11]
[328303980,1717127469801,-361.48015737,0.00032876,2]
[328303981,1717127469817,-138.51984263,0.00032876,2]
[328303982,1717127469827,-500.0,0.00032876,2]
[328303983,1717127469837,-500.0,0.00032876,2]
[328303984,1717127469848,-17.67809662,0.00033299,11]
[328303985,1717127469858,-570.55,0.00033299,11]
[328303986,1717127469868,-677.55,0.00033299,11]
[328303987,1717127469879,-677.77,0.00033299,11]